[Event "Early-Titled-Tuesday-Blitz-March-12-2024"]
[Site "Chess.com"]
[Date "2024.03.12"]
[Round "1"]
[White "Actuary44"]
[Black "Fandorine"]
[Result "0-1"]
[WhiteElo "2531"]
[BlackElo "2969"]
[TimeControl "180+1"]
[EndTime "8:07:09 PDT"]
[Termination "Fandorine won by resignation"]

1. e4 {[%clk 0:03:00.9]} 1... e5 {[%clk 0:02:57.1]} 2. d4 {[%clk 0:03:00.4]}
2... exd4 {[%clk 0:02:51.3]} 3. c3 {[%clk 0:03:01]} 3... d5 {[%clk 0:02:48.6]}
4. exd5 {[%clk 0:03:00.6]} 4... Qxd5 {[%clk 0:02:49.5]} 5. cxd4 {[%clk 0:03:01]}
5... Nc6 {[%clk 0:02:49]} 6. Nf3 {[%clk 0:03:01.4]} 6... Bg4 {[%clk 0:02:48.1]}
7. Be2 {[%clk 0:03:01.8]} 7... Bb4+ {[%clk 0:02:45.5]} 8. Nc3 {[%clk 0:03:02.2]}
8... Bxf3 {[%clk 0:02:41.9]} 9. Bxf3 {[%clk 0:02:40.1]} 9... Qc4 {[%clk
0:02:41.9]} 10. Bxc6+ {[%clk 0:02:36.7]} 10... bxc6 {[%clk 0:02:38.5]} 11. Qe2+
{[%clk 0:02:35.4]} 11... Qxe2+ {[%clk 0:02:38.5]} 12. Kxe2 {[%clk 0:02:36.3]}
12... Ne7 {[%clk 0:02:36.4]} 13. Bf4 {[%clk 0:02:24.5]} 13... O-O-O {[%clk
0:02:33.9]} 14. Rhd1 {[%clk 0:02:16.9]} 14... Nf5 {[%clk 0:02:28.9]} 15. Be3
{[%clk 0:01:55.3]} 15... Rhe8 {[%clk 0:02:28.1]} 16. Kf3 {[%clk 0:01:46.9]}
16... f6 {[%clk 0:02:19.9]} 17. Rac1 {[%clk 0:01:43]} 17... Nh4+ {[%clk
0:02:09.9]} 18. Kg3 {[%clk 0:01:36.5]} 18... g5 {[%clk 0:02:09.7]} 19. a3 {[%clk
0:00:54.6]} 19... Bd6+ {[%clk 0:02:06.4]} 20. Kh3 {[%clk 0:00:45.8]} 20... h5
{[%clk 0:01:41.6]} 21. g3 {[%clk 0:00:44.6]} 21... Nf5 {[%clk 0:01:41.3]} 22.
Rd3 {[%clk 0:00:31.2]} 22... g4+ {[%clk 0:01:32.6]} 23. Kg2 {[%clk 0:00:31.1]}
23... h4 {[%clk 0:01:33.3]} 24. Ne2 {[%clk 0:00:26.4]} 24... c5 {[%clk
0:01:12.6]} 25. dxc5 {[%clk 0:00:24.2]} 25... Be5 {[%clk 0:01:07]} 26. Rxd8+
{[%clk 0:00:16.3]} 26... Rxd8 {[%clk 0:01:06.8]} 27. b4 {[%clk 0:00:17.1]} 27...
h3+ {[%clk 0:00:57.3]} 28. Kf1 {[%clk 0:00:16.6]} 28... Rd3 {[%clk 0:00:55.9]}
29. Bf4 {[%clk 0:00:12.7]} 29... Bb2 {[%clk 0:00:52.5]} 30. Rb1 {[%clk
0:00:11.6]} 30... Bxa3 {[%clk 0:00:52.8]} 31. b5 {[%clk 0:00:10.9]} 31... Bxc5
{[%clk 0:00:52.5]} 32. Nc1 {[%clk 0:00:10.9]} 32... Rd1+ {[%clk 0:00:49.4]} 33.
Ke2 {[%clk 0:00:11.2]} 33... Rh1 {[%clk 0:00:50.1]} 34. Ra1 {[%clk 0:00:06.2]}
34... Nd4+ {[%clk 0:00:47.8]} 35. Kd3 {[%clk 0:00:04.3]} 35... Nxb5 {[%clk
0:00:44.8]} 36. Kc4 {[%clk 0:00:03.1]} 36... Bd4 {[%clk 0:00:38.5]} 37. Ra5
{[%clk 0:00:02]} 37... c6 {[%clk 0:00:39.1]} 38. Nb3 {[%clk 0:00:01.5]} 38...
Bb6 {[%clk 0:00:38.5]} 39. Ra6 {[%clk 0:00:01.8]} 39... Rxh2 {[%clk 0:00:37.8]}
40. Na5 {[%clk 0:00:01.4]} 40... Bxa5 {[%clk 0:00:36.5]} 41. Rxc6+ {[%clk
0:00:02.1]} 41... Nc7 {[%clk 0:00:35.9]} 42. Ra6 {[%clk 0:00:02.2]} 42... Nxa6
{[%clk 0:00:35.7]} 43. Kb5 {[%clk 0:00:02.3]} 43... Rxf2 {[%clk 0:00:35.3]} 0-1

[Event "Early-Titled-Tuesday-Blitz-March-12-2024"]
[Site "Chess.com"]
[Date "2024.03.12"]
[Round "1"]
[White "mikheeva86"]
[Black "Roman_Ovetchkin"]
[Result "0-1"]
[WhiteElo "2104"]
[BlackElo "2598"]
[TimeControl "180+1"]
[EndTime "8:07:23 PDT"]
[Termination "Roman_Ovetchkin won by checkmate"]

1. e4 {[%clk 0:02:59.4]} 1... c6 {[%clk 0:02:59.5]} 2. d4 {[%clk 0:02:58.3]}
2... d5 {[%clk 0:03:00]} 3. exd5 {[%clk 0:02:58.8]} 3... cxd5 {[%clk 0:02:59.8]}
4. c4 {[%clk 0:02:59.3]} 4... Nf6 {[%clk 0:02:59.4]} 5. Nc3 {[%clk 0:02:59.2]}
5... g6 {[%clk 0:03:00]} 6. Nf3 {[%clk 0:02:59]} 6... Bg7 {[%clk 0:02:59.9]} 7.
Bd3 {[%clk 0:02:58.9]} 7... O-O {[%clk 0:02:59.9]} 8. O-O {[%clk 0:02:59.3]}
8... Nc6 {[%clk 0:02:58.1]} 9. h3 {[%clk 0:02:56.1]} 9... dxc4 {[%clk
0:02:55.7]} 10. Bxc4 {[%clk 0:02:55.9]} 10... Na5 {[%clk 0:02:56.3]} 11. Bd3
{[%clk 0:02:51.1]} 11... Be6 {[%clk 0:02:55.4]} 12. Bf4 {[%clk 0:02:44.4]} 12...
Nd5 {[%clk 0:02:50.6]} 13. Be5 {[%clk 0:02:36.1]} 13... Rc8 {[%clk 0:02:47.3]}
14. Bxg7 {[%clk 0:02:19]} 14... Kxg7 {[%clk 0:02:48.2]} 15. Ne4 {[%clk
0:02:18.3]} 15... Bf5 {[%clk 0:02:39.8]} 16. Nc5 {[%clk 0:02:11.6]} 16... Bxd3
{[%clk 0:02:37.1]} 17. Qxd3 {[%clk 0:02:09.2]} 17... b6 {[%clk 0:02:31.1]} 18.
Ne4 {[%clk 0:02:02.4]} 18... Nc4 {[%clk 0:02:29.3]} 19. Rab1 {[%clk 0:01:54.9]}
19... Nf4 {[%clk 0:02:19.9]} 20. Qd1 {[%clk 0:01:40.2]} 20... Qd5 {[%clk
0:02:09.2]} 21. Re1 {[%clk 0:01:26.7]} 21... Rfd8 {[%clk 0:01:56]} 22. Nc3
{[%clk 0:01:25]} 22... Qb7 {[%clk 0:01:55.4]} 23. Qb3 {[%clk 0:01:07.7]} 23...
Rxd4 {[%clk 0:01:24.8]} 24. Nb5 {[%clk 0:00:19.1]} 24... Rd3 {[%clk 0:01:24.1]}
25. Qb4 {[%clk 0:00:19.5]} 25... Nd5 {[%clk 0:01:01.5]} 26. Qa4 {[%clk
0:00:17.9]} 26... a6 {[%clk 0:00:58.1]} 27. Nbd4 {[%clk 0:00:16.2]} 27... b5
{[%clk 0:00:56.3]} 28. Qc2 {[%clk 0:00:15.8]} 28... Nf4 {[%clk 0:00:54.1]} 29.
b4 {[%clk 0:00:14]} 29... Rxd4 {[%clk 0:00:53.7]} 30. Rxe7 {[%clk 0:00:11.7]}
30... Qxe7 {[%clk 0:00:51.6]} 31. Nxd4 {[%clk 0:00:12.3]} 31... Nxg2 {[%clk
0:00:43.1]} 32. Qc3 {[%clk 0:00:09.4]} 32... Qf6 {[%clk 0:00:38.4]} 33. Kxg2
{[%clk 0:00:08.4]} 33... Nd6 {[%clk 0:00:38.5]} 34. Qd3 {[%clk 0:00:07.7]} 34...
Rc4 {[%clk 0:00:36.7]} 35. Nf3 {[%clk 0:00:07.2]} 35... Rc3 {[%clk 0:00:32.2]}
36. Qe2 {[%clk 0:00:06.2]} 36... Nf5 {[%clk 0:00:30]} 37. Kg1 {[%clk 0:00:05.2]}
37... Nd4 {[%clk 0:00:23.2]} 38. Nxd4 {[%clk 0:00:04.6]} 38... Qxd4 {[%clk
0:00:24.1]} 39. Qe1 {[%clk 0:00:02.3]} 39... Rxh3 {[%clk 0:00:22.9]} 40. Kg2
{[%clk 0:00:02.5]} 40... Qg4+ {[%clk 0:00:22.7]} 41. Kf1 {[%clk 0:00:01.2]}
41... Rh1# {[%clk 0:00:23.3]} 0-1

[Event "Early-Titled-Tuesday-Blitz-March-12-2024"]
[Site "Chess.com"]
[Date "2024.03.12"]
[Round "1"]
[White "EpicPlayz282"]
[Black "Hamisandwich"]
[Result "0-1"]
[WhiteElo "2335"]
[BlackElo "2708"]
[TimeControl "180+1"]
[EndTime "8:07:26 PDT"]
[Termination "Hamisandwich won on time"]

1. e4 {[%clk 0:03:00.9]} 1... e5 {[%clk 0:02:44.5]} 2. Nf3 {[%clk 0:02:59.7]}
2... Nc6 {[%clk 0:02:41.8]} 3. Nc3 {[%clk 0:02:59.6]} 3... Be7 {[%clk
0:02:36.6]} 4. a3 {[%clk 0:02:57.2]} 4... Nf6 {[%clk 0:02:32.8]} 5. d4 {[%clk
0:02:52.6]} 5... exd4 {[%clk 0:02:31.3]} 6. Nxd4 {[%clk 0:02:52.8]} 6... O-O
{[%clk 0:02:27.1]} 7. Be2 {[%clk 0:02:52.6]} 7... Re8 {[%clk 0:02:20.6]} 8. Bf4
{[%clk 0:02:19.1]} 8... d6 {[%clk 0:01:56.2]} 9. Nxc6 {[%clk 0:01:40.1]} 9...
bxc6 {[%clk 0:01:57.1]} 10. e5 {[%clk 0:01:40.7]} 10... dxe5 {[%clk 0:01:55.8]}
11. Bxe5 {[%clk 0:01:41]} 11... Bd6 {[%clk 0:01:47.9]} 12. Bxd6 {[%clk
0:01:37.4]} 12... cxd6 {[%clk 0:01:48.8]} 13. O-O {[%clk 0:01:36.5]} 13... d5
{[%clk 0:01:40.1]} 14. Bd3 {[%clk 0:01:19.6]} 14... c5 {[%clk 0:01:37.6]} 15.
Qf3 {[%clk 0:00:39.8]} 15... c4 {[%clk 0:01:26.4]} 16. Bxc4 {[%clk 0:00:35.4]}
16... Bg4 {[%clk 0:01:26.1]} 17. Qf4 {[%clk 0:00:25.3]} 17... dxc4 {[%clk
0:01:26.1]} 18. Qxc4 {[%clk 0:00:26]} 18... Qb6 {[%clk 0:01:18.2]} 19. Rab1
{[%clk 0:00:21.6]} 19... Rac8 {[%clk 0:01:16.8]} 20. Qf4 {[%clk 0:00:21.8]}
20... Qc7 {[%clk 0:01:15.3]} 21. Qa4 {[%clk 0:00:18.6]} 21... Bd7 {[%clk
0:01:10]} 22. Qh4 {[%clk 0:00:18.9]} 22... Bf5 {[%clk 0:01:09.9]} 23. Rbc1
{[%clk 0:00:14.5]} 23... Qc4 {[%clk 0:01:10]} 24. Qg5 {[%clk 0:00:14]} 24... Bg6
{[%clk 0:01:07.2]} 25. Qg3 {[%clk 0:00:13.9]} 25... Rb8 {[%clk 0:01:02]} 26. b3
{[%clk 0:00:12.6]} 26... Qg4 {[%clk 0:01:00.4]} 27. Qd6 {[%clk 0:00:12]} 27...
Qd7 {[%clk 0:00:56.3]} 28. Qg3 {[%clk 0:00:11.8]} 28... Qg4 {[%clk 0:00:54.5]}
29. Qd6 {[%clk 0:00:11.6]} 29... Red8 {[%clk 0:00:55.1]} 30. Qa6 {[%clk
0:00:11.5]} 30... Qc8 {[%clk 0:00:52.5]} 31. Qa5 {[%clk 0:00:09.2]} 31... Ne4
{[%clk 0:00:41.7]} 32. Nd5 {[%clk 0:00:06]} 32... Kh8 {[%clk 0:00:34.9]} 33.
Rfd1 {[%clk 0:00:03.8]} 33... Qc5 {[%clk 0:00:32.3]} 34. Qxc5 {[%clk 0:00:04.1]}
34... Nxc5 {[%clk 0:00:33.2]} 35. b4 {[%clk 0:00:04.2]} 35... Na4 {[%clk
0:00:31.5]} 36. c4 {[%clk 0:00:04.9]} 36... Nb2 {[%clk 0:00:28.5]} 37. Rd2
{[%clk 0:00:04.5]} 37... Nd3 {[%clk 0:00:23]} 38. Rc3 {[%clk 0:00:04.7]} 38...
Rbc8 {[%clk 0:00:20.4]} 39. Ne3 {[%clk 0:00:02.7]} 39... Nf4 {[%clk 0:00:19.3]}
40. Rb2 {[%clk 0:00:01.9]} 40... Rd3 {[%clk 0:00:17.1]} 41. Rc1 {[%clk
0:00:01.6]} 41... Rxa3 {[%clk 0:00:16.5]} 42. g3 {[%clk 0:00:01.9]} 42... Nd3
{[%clk 0:00:16.6]} 43. Rd2 {[%clk 0:00:02.1]} 43... Ne5 {[%clk 0:00:16.9]} 0-1

[Event "Early-Titled-Tuesday-Blitz-March-12-2024"]
[Site "Chess.com"]
[Date "2024.03.12"]
[Round "1"]
[White "nickmatta"]
[Black "Sychev_on_YouTube"]
[Result "0-1"]
[WhiteElo "2527"]
[BlackElo "2924"]
[TimeControl "180+1"]
[EndTime "8:07:28 PDT"]
[Termination "Sychev_on_YouTube won by resignation"]

1. Nf3 {[%clk 0:02:59.1]} 1... Nf6 {[%clk 0:02:59.5]} 2. c4 {[%clk 0:02:55.9]}
2... g6 {[%clk 0:02:57.8]} 3. b3 {[%clk 0:02:56.2]} 3... Bg7 {[%clk 0:02:57.8]}
4. Bb2 {[%clk 0:02:56.9]} 4... O-O {[%clk 0:02:58]} 5. e3 {[%clk 0:02:51.8]}
5... d6 {[%clk 0:02:57.4]} 6. Be2 {[%clk 0:02:49.7]} 6... e5 {[%clk 0:02:57.3]}
7. O-O {[%clk 0:02:44.8]} 7... Nbd7 {[%clk 0:02:55.7]} 8. Nc3 {[%clk 0:02:43.9]}
8... e4 {[%clk 0:02:49.9]} 9. Ng5 {[%clk 0:02:41.3]} 9... Re8 {[%clk 0:02:47.1]}
10. d3 {[%clk 0:02:37.1]} 10... exd3 {[%clk 0:02:46.2]} 11. Bxd3 {[%clk
0:02:37.3]} 11... Ne5 {[%clk 0:02:45]} 12. Be2 {[%clk 0:02:35.7]} 12... Bf5
{[%clk 0:02:41.2]} 13. Nf3 {[%clk 0:02:20.8]} 13... Ne4 {[%clk 0:02:33.4]} 14.
Nd4 {[%clk 0:02:17.6]} 14... Nxc3 {[%clk 0:02:27.7]} 15. Bxc3 {[%clk 0:02:17.5]}
15... Bd7 {[%clk 0:02:28]} 16. Rc1 {[%clk 0:02:13.1]} 16... h5 {[%clk
0:02:21.7]} 17. h3 {[%clk 0:02:08.5]} 17... Qh4 {[%clk 0:02:14.8]} 18. f4 {[%clk
0:01:12.5]} 18... Nc6 {[%clk 0:02:13.1]} 19. Nxc6 {[%clk 0:01:05.8]} 19... Bxc6
{[%clk 0:02:02.4]} 20. Bxg7 {[%clk 0:01:05.6]} 20... Kxg7 {[%clk 0:02:03.3]} 21.
Qd4+ {[%clk 0:01:03.2]} 21... Qf6 {[%clk 0:02:03.3]} 22. Bf3 {[%clk 0:00:58]}
22... Bxf3 {[%clk 0:01:52.6]} 23. Rxf3 {[%clk 0:00:57.5]} 23... a5 {[%clk
0:01:52.6]} 24. f5 {[%clk 0:00:52.5]} 24... g5 {[%clk 0:01:48]} 25. Rg3 {[%clk
0:00:47.2]} 25... Qxd4 {[%clk 0:01:46.5]} 26. exd4 {[%clk 0:00:48.1]} 26... Kf6
{[%clk 0:01:46.9]} 27. Rf3 {[%clk 0:00:42.2]} 27... a4 {[%clk 0:01:40.1]} 28. b4
{[%clk 0:00:39.8]} 28... a3 {[%clk 0:01:28.6]} 29. Rcc3 {[%clk 0:00:37.9]} 29...
Ra4 {[%clk 0:01:28.5]} 30. Rb3 {[%clk 0:00:28.7]} 30... Re2 {[%clk 0:01:26.9]}
31. Rf2 {[%clk 0:00:21.9]} 31... Re4 {[%clk 0:01:16.2]} 32. Rd2 {[%clk
0:00:12.6]} 32... Kxf5 {[%clk 0:01:15.2]} 33. Rf3+ {[%clk 0:00:12.1]} 33... Rf4
{[%clk 0:01:10.6]} 34. Rb3 {[%clk 0:00:11.1]} 34... h4 {[%clk 0:01:10.7]} 35. c5
{[%clk 0:00:09.3]} 35... Ke6 {[%clk 0:01:02.9]} 36. d5+ {[%clk 0:00:08.6]} 36...
Kd7 {[%clk 0:01:03]} 37. cxd6 {[%clk 0:00:02.1]} 37... Kxd6 {[%clk 0:01:02.9]}
38. b5 {[%clk 0:00:02.8]} 38... Rf5 {[%clk 0:00:52.9]} 39. Rdd3 {[%clk
0:00:02.3]} 39... Rxd5 {[%clk 0:00:51.7]} 40. Rxa3 {[%clk 0:00:03]} 40... Rxa3
{[%clk 0:00:49.8]} 41. Rxa3 {[%clk 0:00:03.9]} 41... Rxb5 {[%clk 0:00:50.3]} 42.
Rf3 {[%clk 0:00:04.4]} 42... f5 {[%clk 0:00:49.3]} 43. Rd3+ {[%clk 0:00:03.9]}
43... Rd5 {[%clk 0:00:48.9]} 44. Rb3 {[%clk 0:00:03.4]} 44... b5 {[%clk
0:00:48.4]} 45. Re3 {[%clk 0:00:02.4]} 45... b4 {[%clk 0:00:46.4]} 46. Re8
{[%clk 0:00:02.8]} 46... Ra5 {[%clk 0:00:43.5]} 47. Rg8 {[%clk 0:00:02.4]} 47...
f4 {[%clk 0:00:43.2]} 48. Rd8+ {[%clk 0:00:02.2]} 48... Ke7 {[%clk 0:00:42.6]}
49. Rd2 {[%clk 0:00:03.1]} 49... Ra3 {[%clk 0:00:40.9]} 50. Kf2 {[%clk 0:00:04]}
50... c5 {[%clk 0:00:41.1]} 51. Rc2 {[%clk 0:00:04.3]} 51... Kd6 {[%clk
0:00:41.2]} 52. Rd2+ {[%clk 0:00:05.1]} 52... Kc6 {[%clk 0:00:41.7]} 53. Re2
{[%clk 0:00:06]} 53... Kb5 {[%clk 0:00:41.6]} 54. Ke1 {[%clk 0:00:05.3]} 54...
Re3 {[%clk 0:00:40.1]} 55. Rxe3 {[%clk 0:00:05.5]} 55... fxe3 {[%clk 0:00:40]}
56. Ke2 {[%clk 0:00:06.4]} 56... Ka4 {[%clk 0:00:39.6]} 57. Kxe3 {[%clk
0:00:06.6]} 57... Ka3 {[%clk 0:00:40.3]} 58. Kd3 {[%clk 0:00:07.5]} 0-1

[Event "Early-Titled-Tuesday-Blitz-March-12-2024"]
[Site "Chess.com"]
[Date "2024.03.12"]
[Round "1"]
[White "Chessdude1987"]
[Black "DamianoLew95"]
[Result "0-1"]
[WhiteElo "2406"]
[BlackElo "2758"]
[TimeControl "180+1"]
[EndTime "8:07:34 PDT"]
[Termination "DamianoLew95 won on time"]

1. e4 {[%clk 0:03:00.9]} 1... c5 {[%clk 0:02:57.8]} 2. Nf3 {[%clk 0:03:00.1]}
2... d6 {[%clk 0:02:57.6]} 3. Bc4 {[%clk 0:02:59.7]} 3... e6 {[%clk 0:02:57.7]}
4. O-O {[%clk 0:02:56.7]} 4... a6 {[%clk 0:02:43]} 5. Bb3 {[%clk 0:02:50.8]}
5... Ne7 {[%clk 0:02:36]} 6. c3 {[%clk 0:02:46.7]} 6... d5 {[%clk 0:02:32.3]} 7.
exd5 {[%clk 0:02:42.6]} 7... Nxd5 {[%clk 0:02:32.1]} 8. d4 {[%clk 0:02:42.5]}
8... cxd4 {[%clk 0:02:32.1]} 9. cxd4 {[%clk 0:02:42.2]} 9... Be7 {[%clk
0:02:29]} 10. Nc3 {[%clk 0:02:28.8]} 10... Nxc3 {[%clk 0:02:26.3]} 11. bxc3
{[%clk 0:02:28.8]} 11... Nd7 {[%clk 0:02:23.5]} 12. Re1 {[%clk 0:02:17.7]} 12...
O-O {[%clk 0:02:17.9]} 13. Bc2 {[%clk 0:02:12.1]} 13... Nf6 {[%clk 0:02:17.9]}
14. Bg5 {[%clk 0:02:08.8]} 14... Re8 {[%clk 0:02:08.3]} 15. Qd3 {[%clk
0:02:07.5]} 15... g6 {[%clk 0:02:08.3]} 16. Ne5 {[%clk 0:02:04.2]} 16... Nd7
{[%clk 0:01:58.7]} 17. Bxe7 {[%clk 0:01:38.2]} 17... Qxe7 {[%clk 0:01:56.5]} 18.
Nf3 {[%clk 0:01:35]} 18... b5 {[%clk 0:01:42.5]} 19. Qe4 {[%clk 0:01:13.6]}
19... Rb8 {[%clk 0:01:37.4]} 20. Qf4 {[%clk 0:01:13.1]} 20... Bb7 {[%clk
0:01:32.8]} 21. Ng5 {[%clk 0:01:05.2]} 21... Kg7 {[%clk 0:01:19.5]} 22. h4
{[%clk 0:00:56.3]} 22... h6 {[%clk 0:01:12.9]} 23. Nh3 {[%clk 0:00:56.3]} 23...
Qf6 {[%clk 0:01:12]} 24. Qg3 {[%clk 0:00:43.4]} 24... e5 {[%clk 0:01:01.5]} 25.
dxe5 {[%clk 0:00:40.7]} 25... Rxe5 {[%clk 0:00:58.1]} 26. Nf4 {[%clk 0:00:38.8]}
26... Kg8 {[%clk 0:00:42.2]} 27. Rxe5 {[%clk 0:00:32.6]} 27... Nxe5 {[%clk
0:00:41.3]} 28. Nh5 {[%clk 0:00:27.7]} 28... Qc6 {[%clk 0:00:30.6]} 29. f3
{[%clk 0:00:17.8]} 29... Qxc3 {[%clk 0:00:22.5]} 30. Re1 {[%clk 0:00:12.7]}
30... Kh8 {[%clk 0:00:17.1]} 31. Rxe5 {[%clk 0:00:08]} 31... Qxc2 {[%clk
0:00:12]} 32. Re7 {[%clk 0:00:03.2]} 32... Qc5+ {[%clk 0:00:11.2]} 33. Kh2
{[%clk 0:00:02.9]} 33... Qxe7 {[%clk 0:00:10.5]} 34. Qxb8+ {[%clk 0:00:02.6]}
34... Kh7 {[%clk 0:00:10.6]} 35. Ng3 {[%clk 0:00:01.6]} 35... Qxh4+ {[%clk
0:00:10.2]} 36. Kg1 {[%clk 0:00:01.7]} 36... Qe7 {[%clk 0:00:10.8]} 37. Qf4
{[%clk 0:00:01.5]} 37... Kg7 {[%clk 0:00:10.2]} 38. Qd2 {[%clk 0:00:01.6]} 38...
Bc6 {[%clk 0:00:06.7]} 39. Qd4+ {[%clk 0:00:01.8]} 39... Qf6 {[%clk 0:00:07]}
40. Qc5 {[%clk 0:00:01.9]} 40... Bd7 {[%clk 0:00:07]} 41. Qe3 {[%clk 0:00:01.5]}
41... Be6 {[%clk 0:00:07.2]} 42. Ne4 {[%clk 0:00:01.5]} 42... Qa1+ {[%clk
0:00:07.9]} 0-1

[Event "Early-Titled-Tuesday-Blitz-March-12-2024"]
[Site "Chess.com"]
[Date "2024.03.12"]
[Round "1"]
[White "IwkooO"]
[Black "HanSchut"]
[Result "1-0"]
[WhiteElo "2686"]
[BlackElo "2310"]
[TimeControl "180+1"]
[EndTime "8:07:36 PDT"]
[Termination "IwkooO won by checkmate"]

1. e4 {[%clk 0:03:00.2]} 1... c5 {[%clk 0:02:57.9]} 2. Nf3 {[%clk 0:02:44.6]}
2... d6 {[%clk 0:02:57.8]} 3. d4 {[%clk 0:02:40.9]} 3... cxd4 {[%clk 0:02:58.7]}
4. Nxd4 {[%clk 0:02:41.5]} 4... Nf6 {[%clk 0:02:59.1]} 5. Nc3 {[%clk 0:02:39.1]}
5... a6 {[%clk 0:02:59.6]} 6. Bg5 {[%clk 0:02:37.5]} 6... e6 {[%clk 0:02:59.1]}
7. f4 {[%clk 0:02:36.5]} 7... Be7 {[%clk 0:02:59.7]} 8. Qf3 {[%clk 0:02:36.7]}
8... h6 {[%clk 0:02:59.7]} 9. Bh4 {[%clk 0:02:36.8]} 9... g5 {[%clk 0:02:59.5]}
10. fxg5 {[%clk 0:02:36.6]} 10... Nfd7 {[%clk 0:03:00.1]} 11. Qh5 {[%clk
0:02:22.1]} 11... Ne5 {[%clk 0:02:58.4]} 12. O-O-O {[%clk 0:02:19.2]} 12... Ng6
{[%clk 0:02:57.7]} 13. Bg3 {[%clk 0:02:17.6]} 13... hxg5 {[%clk 0:02:55.6]} 14.
Qe2 {[%clk 0:02:15.3]} 14... Nd7 {[%clk 0:02:56.1]} 15. Kb1 {[%clk 0:02:15.2]}
15... Qc7 {[%clk 0:02:47.1]} 16. Qd2 {[%clk 0:01:47.8]} 16... Nde5 {[%clk
0:02:45.5]} 17. Nf3 {[%clk 0:01:47.6]} 17... Bd7 {[%clk 0:02:44.7]} 18. Nxg5
{[%clk 0:01:42.4]} 18... b5 {[%clk 0:02:32.8]} 19. Nf3 {[%clk 0:01:41.5]} 19...
O-O-O {[%clk 0:02:17.2]} 20. a3 {[%clk 0:01:38.9]} 20... Kb8 {[%clk 0:01:48.2]}
21. Qe3 {[%clk 0:01:32.7]} 21... Bc6 {[%clk 0:01:39.7]} 22. Be2 {[%clk
0:01:32.1]} 22... Rc8 {[%clk 0:01:32.7]} 23. Nd4 {[%clk 0:01:31.8]} 23... Bb7
{[%clk 0:01:24.4]} 24. Rhf1 {[%clk 0:01:32.2]} 24... Rhf8 {[%clk 0:01:20.2]} 25.
Nf3 {[%clk 0:01:30.5]} 25... Nxf3 {[%clk 0:01:11.5]} 26. gxf3 {[%clk 0:01:30.1]}
26... Ne5 {[%clk 0:01:11.5]} 27. f4 {[%clk 0:01:29.7]} 27... Nc4 {[%clk
0:01:11.1]} 28. Bxc4 {[%clk 0:01:27.5]} 28... Qxc4 {[%clk 0:01:12]} 29. f5
{[%clk 0:01:27.1]} 29... e5 {[%clk 0:00:58.6]} 30. Rd3 {[%clk 0:01:24.4]} 30...
f6 {[%clk 0:00:51.4]} 31. Rfd1 {[%clk 0:01:23.7]} 31... Rfd8 {[%clk 0:00:50.4]}
32. Bf2 {[%clk 0:01:19]} 32... Rc5 {[%clk 0:00:36.4]} 33. b3 {[%clk 0:01:08.2]}
33... Qf7 {[%clk 0:00:12.2]} 34. b4 {[%clk 0:01:01.5]} 34... Rc7 {[%clk
0:00:10.1]} 35. Qa7+ {[%clk 0:01:01.6]} 35... Kc8 {[%clk 0:00:10.7]} 36. Bb6
{[%clk 0:01:00.4]} 36... Rdd7 {[%clk 0:00:11]} 37. Bxc7 {[%clk 0:01:00.6]} 37...
Rxc7 {[%clk 0:00:11.9]} 38. Qb6 {[%clk 0:00:56.3]} 38... Qc4 {[%clk 0:00:11.5]}
39. R1d2 {[%clk 0:00:49.9]} 39... Bxe4 {[%clk 0:00:09.2]} 40. Nxe4 {[%clk
0:00:49.3]} 40... Qxe4 {[%clk 0:00:10.1]} 41. Qxa6+ {[%clk 0:00:49.8]} 41... Kd7
{[%clk 0:00:10.6]} 42. Qxb5+ {[%clk 0:00:50]} 42... Kd8 {[%clk 0:00:10.6]} 43.
Rg3 {[%clk 0:00:27.3]} 43... Bf8 {[%clk 0:00:06.3]} 44. Kb2 {[%clk 0:00:23.4]}
44... Qxf5 {[%clk 0:00:05.7]} 45. Rg8 {[%clk 0:00:20.6]} 45... Ke7 {[%clk
0:00:05.7]} 46. Qb8 {[%clk 0:00:17.5]} 46... Rd7 {[%clk 0:00:06]} 47. Qxf8+
{[%clk 0:00:17.4]} 47... Ke6 {[%clk 0:00:06.9]} 48. Qe8+ {[%clk 0:00:17.7]}
48... Re7 {[%clk 0:00:06.6]} 49. Qc8+ {[%clk 0:00:17.8]} 49... Kf7 {[%clk
0:00:07.1]} 50. Qxf5 {[%clk 0:00:17.4]} 50... Kxg8 {[%clk 0:00:05.6]} 51. Qxf6
{[%clk 0:00:18]} 51... Rf7 {[%clk 0:00:05.8]} 52. Rg2+ {[%clk 0:00:17.7]} 52...
Kf8 {[%clk 0:00:06.7]} 53. Qd8# {[%clk 0:00:18]} 1-0